[Event "*** Titled Tuesday Blitz"]
[Site "Chess.com"]
[Date "2019.08.06"]
[Round "3"]
[White "Zq1"]
[Black "imdvb6307"]
[Result "0-1"]
[WhiteElo "2577"]
[BlackElo "2397"]
[TimeControl "180+2"]
[EndTime "13:38:02 PDT"]
[Termination "imdvb6307 won by resignation"]

1. d4 {[%clk 0:03:01.9]} 1... Nf6 {[%clk 0:02:59.4]} 2. c4 {[%clk 0:03:02.9]}
2... c6 {[%clk 0:03:00]} 3. Bf4 {[%clk 0:03:02.9]} 3... d5 {[%clk 0:03:00.9]} 4.
e3 {[%clk 0:03:03.9]} 4... Bf5 {[%clk 0:02:49]} 5. Nc3 {[%clk 0:03:04.6]} 5...
Qb6 {[%clk 0:02:25.8]} 6. Qb3 {[%clk 0:03:05.4]} 6... Na6 {[%clk 0:01:39.1]} 7.
c5 {[%clk 0:03:04.1]} 7... Qxb3 {[%clk 0:01:39.1]} 8. axb3 {[%clk 0:03:05.2]}
8... Nb4 {[%clk 0:01:40]} 9. Kd2 {[%clk 0:03:06.3]} 9... e6 {[%clk 0:01:29.8]}
10. f3 {[%clk 0:03:04.9]} 10... Be7 {[%clk 0:01:27.3]} 11. g4 {[%clk 0:03:03.7]}
11... Bg6 {[%clk 0:01:28.3]} 12. h4 {[%clk 0:03:04.7]} 12... h5 {[%clk
0:01:21.4]} 13. g5 {[%clk 0:03:05.1]} 13... Nd7 {[%clk 0:01:22.2]} 14. Ra4
{[%clk 0:02:53.1]} 14... a5 {[%clk 0:01:22.1]} 15. Ra1 {[%clk 0:02:45.6]} 15...
f6 {[%clk 0:01:16]} 16. Nge2 {[%clk 0:02:33.8]} 16... Kf7 {[%clk 0:01:02.5]} 17.
Nc1 {[%clk 0:02:28.5]} 17... Rhc8 {[%clk 0:00:51]} 18. Nd3 {[%clk 0:02:27.6]}
18... b6 {[%clk 0:00:42.7]} 19. cxb6 {[%clk 0:02:23.9]} 19... Nxb6 {[%clk
0:00:42.6]} 20. Nxb4 {[%clk 0:02:08.7]} 20... axb4 {[%clk 0:00:36.6]} 21. Na4
{[%clk 0:02:09.3]} 21... Nd7 {[%clk 0:00:20.9]} 22. gxf6 {[%clk 0:02:07.8]}
22... gxf6 {[%clk 0:00:21.5]} 23. Bd3 {[%clk 0:02:06]} 23... Bxd3 {[%clk
0:00:21]} 24. Kxd3 {[%clk 0:02:06.7]} 24... e5 {[%clk 0:00:22.6]} 25. Bh2 {[%clk
0:01:56]} 25... Rg8 {[%clk 0:00:22.7]} 26. Rhg1 {[%clk 0:01:45.2]} 26... Rxg1
{[%clk 0:00:22.7]} 27. Rxg1 {[%clk 0:01:42.7]} 27... Rg8 {[%clk 0:00:23.8]} 28.
Rxg8 {[%clk 0:01:36.2]} 28... Kxg8 {[%clk 0:00:24.8]} 29. e4 {[%clk 0:01:31]}
29... Kf7 {[%clk 0:00:24.7]} 30. Bg3 {[%clk 0:01:14.8]} 30... Ke6 {[%clk
0:00:25.3]} 31. Bf2 {[%clk 0:01:09.1]} 31... f5 {[%clk 0:00:24.6]} 32. exf5+
{[%clk 0:01:06.2]} 32... Kxf5 {[%clk 0:00:24.9]} 33. Be1 {[%clk 0:00:42.2]}
33... e4+ {[%clk 0:00:22.7]} 34. Ke2 {[%clk 0:00:36.9]} 34... Bd6 {[%clk
0:00:19.8]} 35. Bf2 {[%clk 0:00:30.6]} 35... Nf8 {[%clk 0:00:19.9]} 36. Nc5
{[%clk 0:00:30.1]} 36... Ne6 {[%clk 0:00:17.9]} 37. Nxe6 {[%clk 0:00:21.7]}
37... Kxe6 {[%clk 0:00:12.9]} 38. Be3 {[%clk 0:00:17.7]} 38... Kf5 {[%clk
0:00:13.9]} 39. Bg5 {[%clk 0:00:18.4]} 39... Bf8 {[%clk 0:00:13.5]} 40. Ke3
{[%clk 0:00:16.9]} 40... exf3 {[%clk 0:00:14.1]} 41. Kxf3 {[%clk 0:00:18]} 41...
Bg7 {[%clk 0:00:15.7]} 42. Ke3 {[%clk 0:00:13.3]} 42... Bf6 {[%clk 0:00:16.3]}
43. Bxf6 {[%clk 0:00:13.2]} 43... Kxf6 {[%clk 0:00:17.4]} 44. Kf2 {[%clk
0:00:12.4]} 44... Ke6 {[%clk 0:00:17.4]} 45. Ke3 {[%clk 0:00:13.2]} 45... Kd6
{[%clk 0:00:18.8]} 46. Kf4 {[%clk 0:00:10.7]} 46... c5 {[%clk 0:00:20.1]} 47.
dxc5+ {[%clk 0:00:11.3]} 47... Kxc5 {[%clk 0:00:21.3]} 48. Ke5 {[%clk
0:00:12.7]} 48... Kc6 {[%clk 0:00:22.6]} 49. Kf4 {[%clk 0:00:13.9]} 49... Kd6
{[%clk 0:00:23.5]} 50. Kf5 {[%clk 0:00:15.1]} 50... d4 {[%clk 0:00:20]} 51. Ke4
{[%clk 0:00:10.7]} 51... Kc5 {[%clk 0:00:21]} 52. Kf3 {[%clk 0:00:08.2]} 52...
Kd5 {[%clk 0:00:17.7]} 53. Kf4 {[%clk 0:00:09]} 53... d3 {[%clk 0:00:18.3]} 54.
Ke3 {[%clk 0:00:09.7]} 54... d2 {[%clk 0:00:14]} 55. Kxd2 {[%clk 0:00:10.9]}
55... Ke4 {[%clk 0:00:12.7]} 56. Ke2 {[%clk 0:00:12]} 56... Kf4 {[%clk
0:00:12.2]} 57. Kd3 {[%clk 0:00:10.5]} 57... Kg4 {[%clk 0:00:13.7]} 58. Kc4
{[%clk 0:00:12]} 58... Kxh4 {[%clk 0:00:15]} 59. Kxb4 {[%clk 0:00:13.7]} 59...
Kg4 {[%clk 0:00:16.1]} 60. Kc5 {[%clk 0:00:13.8]} 60... h4 {[%clk 0:00:17.5]}
61. b4 {[%clk 0:00:15.4]} 61... h3 {[%clk 0:00:19.1]} 62. b5 {[%clk 0:00:17.1]}
62... h2 {[%clk 0:00:21]} 63. b6 {[%clk 0:00:18.6]} 63... h1=Q {[%clk
0:00:22.2]} 0-1

[Event "*** Titled Tuesday Blitz"]
[Site "Chess.com"]
[Date "2019.08.06"]
[Round "3"]
[White "nOcHeaTiNgKiD"]
[Black "Frolik67"]
[Result "0-1"]
[WhiteElo "2441"]
[BlackElo "2622"]
[TimeControl "180+2"]
[EndTime "13:38:05 PDT"]
[Termination "Frolik67 won on time"]

1. Nf3 {[%clk 0:03:01.9]} 1... d5 {[%clk 0:03:00.3]} 2. g3 {[%clk 0:03:01.6]}
2... c5 {[%clk 0:03:01.3]} 3. Bg2 {[%clk 0:03:02.4]} 3... Nc6 {[%clk 0:03:02.3]}
4. d4 {[%clk 0:03:03.5]} 4... Nf6 {[%clk 0:02:59.6]} 5. O-O {[%clk 0:03:03.9]}
5... Bg4 {[%clk 0:02:58.9]} 6. Ne5 {[%clk 0:03:01.9]} 6... Bf5 {[%clk
0:02:52.9]} 7. Nxc6 {[%clk 0:02:58.9]} 7... bxc6 {[%clk 0:02:54.8]} 8. c4 {[%clk
0:03:00]} 8... e6 {[%clk 0:02:54.3]} 9. Nc3 {[%clk 0:02:59.4]} 9... Be7 {[%clk
0:02:52.5]} 10. dxc5 {[%clk 0:02:51.3]} 10... Bxc5 {[%clk 0:02:50.8]} 11. Qa4
{[%clk 0:02:42.1]} 11... Qd7 {[%clk 0:02:46.5]} 12. Bg5 {[%clk 0:02:39.8]} 12...
Be7 {[%clk 0:02:39.2]} 13. Rfd1 {[%clk 0:02:31.6]} 13... O-O {[%clk 0:02:29]}
14. e4 {[%clk 0:02:06.6]} 14... Bg4 {[%clk 0:02:23.4]} 15. f3 {[%clk 0:01:55.9]}
15... Bh5 {[%clk 0:02:21.8]} 16. cxd5 {[%clk 0:01:51]} 16... exd5 {[%clk
0:02:21.1]} 17. Bxf6 {[%clk 0:01:46.3]} 17... Bxf6 {[%clk 0:02:21.2]} 18. Nxd5
{[%clk 0:01:44.9]} 18... Qd6 {[%clk 0:02:10.5]} 19. Nxf6+ {[%clk 0:01:30.2]}
19... Qxf6 {[%clk 0:02:12.4]} 20. Qd4 {[%clk 0:01:29.1]} 20... Qe7 {[%clk
0:02:05.6]} 21. Qd6 {[%clk 0:01:27.6]} 21... Qb7 {[%clk 0:02:06.4]} 22. b3
{[%clk 0:01:24.1]} 22... h6 {[%clk 0:02:02.2]} 23. Rac1 {[%clk 0:01:21.4]} 23...
Rac8 {[%clk 0:02:03.1]} 24. g4 {[%clk 0:01:18.8]} 24... Bg6 {[%clk 0:02:03.4]}
25. Qc5 {[%clk 0:01:18.9]} 25... Kh7 {[%clk 0:02:03.7]} 26. h4 {[%clk
0:01:18.1]} 26... f6 {[%clk 0:02:04.7]} 27. h5 {[%clk 0:01:17]} 27... Bf7 {[%clk
0:02:06.2]} 28. Bf1 {[%clk 0:01:14.1]} 28... Rfd8 {[%clk 0:02:05.7]} 29. Kg2
{[%clk 0:01:12.2]} 29... Qc7 {[%clk 0:02:02.8]} 30. Qf5+ {[%clk 0:01:10]} 30...
Kh8 {[%clk 0:02:01.1]} 31. Bd3 {[%clk 0:01:08.3]} 31... Bg8 {[%clk 0:01:55.1]}
32. Bb1 {[%clk 0:01:04]} 32... Qb6 {[%clk 0:01:52.3]} 33. Qf4 {[%clk 0:00:54.2]}
33... Qb4 {[%clk 0:01:42.9]} 34. Qe3 {[%clk 0:00:53.6]} 34... a5 {[%clk
0:01:34.8]} 35. Qe2 {[%clk 0:00:47.3]} 35... a4 {[%clk 0:01:33.2]} 36. Bc2
{[%clk 0:00:43.8]} 36... axb3 {[%clk 0:01:33.1]} 37. axb3 {[%clk 0:00:44.6]}
37... Ra8 {[%clk 0:01:31.1]} 38. Rxd8 {[%clk 0:00:41.3]} 38... Rxd8 {[%clk
0:01:33]} 39. Rd1 {[%clk 0:00:42.4]} 39... Ra8 {[%clk 0:01:31.8]} 40. Qd2 {[%clk
0:00:40.4]} 40... Qxd2+ {[%clk 0:01:10.5]} 41. Rxd2 {[%clk 0:00:41.5]} 41... Ra2
{[%clk 0:01:12.4]} 42. Re2 {[%clk 0:00:34.8]} 42... Bxb3 {[%clk 0:01:11.2]} 43.
Bd3 {[%clk 0:00:35.9]} 43... Rxe2+ {[%clk 0:00:57.9]} 44. Bxe2 {[%clk
0:00:37.8]} 44... Kg8 {[%clk 0:00:59.4]} 45. Kf2 {[%clk 0:00:38.9]} 45... Kf7
{[%clk 0:01:00.9]} 46. Ke3 {[%clk 0:00:40.2]} 46... Ke6 {[%clk 0:01:02.2]} 47.
Kd4 {[%clk 0:00:39.9]} 47... Kd6 {[%clk 0:01:03.5]} 48. f4 {[%clk 0:00:39.7]}
48... c5+ {[%clk 0:01:02.2]} 49. Kc3 {[%clk 0:00:40.4]} 49... Ba2 {[%clk
0:01:01.1]} 50. Bd3 {[%clk 0:00:39.5]} 50... Be6 {[%clk 0:01:00.4]} 51. Be2
{[%clk 0:00:39.5]} 51... Bc8 {[%clk 0:01:00.1]} 52. Bf3 {[%clk 0:00:40]} 52...
Bd7 {[%clk 0:01:00.8]} 53. Be2 {[%clk 0:00:40.8]} 53... Bc6 {[%clk 0:01:01.5]}
54. Bf3 {[%clk 0:00:41.9]} 54... Bb5 {[%clk 0:01:02.2]} 55. Bd1 {[%clk
0:00:41.2]} 55... Bf1 {[%clk 0:01:01.6]} 56. Bf3 {[%clk 0:00:41.8]} 56... Ke6
{[%clk 0:01:01.5]} 57. Kd2 {[%clk 0:00:40.3]} 57... Kd7 {[%clk 0:00:59]} 58. Kc3
{[%clk 0:00:41.3]} 58... Kd6 {[%clk 0:01:00.3]} 59. Kd2 {[%clk 0:00:42.2]} 59...
Kc7 {[%clk 0:01:01.6]} 60. Kc3 {[%clk 0:00:43.4]} 60... Kb6 {[%clk 0:01:02.7]}
61. e5 {[%clk 0:00:44.6]} 61... fxe5 {[%clk 0:01:02.4]} 62. fxe5 {[%clk
0:00:46.5]} 62... Kc7 {[%clk 0:01:03.7]} 63. Be4 {[%clk 0:00:44.7]} 63... Be2
{[%clk 0:01:01]} 64. Bf5 {[%clk 0:00:45.6]} 64... Kc6 {[%clk 0:01:02.5]} 65. e6
{[%clk 0:00:44.4]} 65... Kd6 {[%clk 0:01:03.3]} 66. Kb3 {[%clk 0:00:42.5]} 66...
Bf3 {[%clk 0:01:03.2]} 67. Kc3 {[%clk 0:00:39.6]} 67... Bd5 {[%clk 0:01:04.1]}
68. Bd3 {[%clk 0:00:32.3]} 68... Bxe6 {[%clk 0:01:03.1]} 69. Be2 {[%clk
0:00:33.3]} 69... Ke5 {[%clk 0:01:02.5]} 70. Kd3 {[%clk 0:00:30]} 70... Kf4
{[%clk 0:01:02]} 0-1

[Event "*** Titled Tuesday Blitz"]
[Site "Chess.com"]
[Date "2019.08.06"]
[Round "3"]
[White "tigra"]
[Black "Fandorine"]
[Result "0-1"]
[WhiteElo "2727"]
[BlackElo "2888"]
[TimeControl "180+2"]
[EndTime "13:38:13 PDT"]
[Termination "Fandorine won by resignation"]

1. e4 {[%clk 0:03:01.9]} 1... e5 {[%clk 0:03:00.5]} 2. Nf3 {[%clk 0:02:58.1]}
2... Nc6 {[%clk 0:03:01.6]} 3. Bc4 {[%clk 0:02:58.2]} 3... Bc5 {[%clk
0:03:01.4]} 4. c3 {[%clk 0:02:57.9]} 4... Nf6 {[%clk 0:03:02]} 5. d3 {[%clk
0:02:59.1]} 5... d6 {[%clk 0:03:02.3]} 6. Bb3 {[%clk 0:02:59.2]} 6... a5 {[%clk
0:03:01.4]} 7. Nbd2 {[%clk 0:02:59.8]} 7... O-O {[%clk 0:02:57.9]} 8. O-O {[%clk
0:03:00.3]} 8... Be6 {[%clk 0:02:46]} 9. Ba4 {[%clk 0:02:54.1]} 9... h6 {[%clk
0:02:40.6]} 10. h3 {[%clk 0:02:48.1]} 10... Qb8 {[%clk 0:02:41.3]} 11. Qe2
{[%clk 0:02:40]} 11... b5 {[%clk 0:02:37.8]} 12. Bc2 {[%clk 0:02:34.9]} 12... b4
{[%clk 0:02:38.8]} 13. Ba4 {[%clk 0:02:29.2]} 13... Ne7 {[%clk 0:02:21.7]} 14.
d4 {[%clk 0:02:25.1]} 14... exd4 {[%clk 0:02:09.8]} 15. cxd4 {[%clk 0:02:25.2]}
15... Bb6 {[%clk 0:02:11.3]} 16. d5 {[%clk 0:02:15.1]} 16... Bd7 {[%clk
0:02:11.1]} 17. Bxd7 {[%clk 0:02:08.1]} 17... Nxd7 {[%clk 0:02:13]} 18. Nc4
{[%clk 0:02:03.3]} 18... Ng6 {[%clk 0:02:10.7]} 19. Nh2 {[%clk 0:01:32.7]} 19...
Nf6 {[%clk 0:02:02.1]} 20. Ng4 {[%clk 0:01:27.1]} 20... Nxg4 {[%clk 0:02:00.5]}
21. hxg4 {[%clk 0:01:26.4]} 21... Bd4 {[%clk 0:02:01.9]} 22. Rd1 {[%clk
0:01:10.8]} 22... Bf6 {[%clk 0:02:00.9]} 23. a4 {[%clk 0:01:09.7]} 23... bxa3
{[%clk 0:01:35.4]} 24. Rxa3 {[%clk 0:01:09.6]} 24... Qb5 {[%clk 0:01:36.8]} 25.
Kf1 {[%clk 0:01:04.5]} 25... Rfe8 {[%clk 0:01:35.5]} 26. f3 {[%clk 0:00:53.9]}
26... a4 {[%clk 0:01:31.4]} 27. g3 {[%clk 0:00:41.4]} 27... Rab8 {[%clk
0:01:18.9]} 28. Re3 {[%clk 0:00:34.2]} 28... Ne5 {[%clk 0:01:10.4]} 29. Na3
{[%clk 0:00:24.9]} 29... Qxe2+ {[%clk 0:01:04]} 30. Kxe2 {[%clk 0:00:26.8]}
30... Nd7 {[%clk 0:01:05]} 31. Rd2 {[%clk 0:00:25.9]} 31... Nc5 {[%clk
0:01:02.1]} 32. Rc2 {[%clk 0:00:24.4]} 32... Bd4 {[%clk 0:00:59.9]} 33. Nc4
{[%clk 0:00:21.5]} 33... Bxe3 {[%clk 0:00:43.5]} 34. Bxe3 {[%clk 0:00:23.4]}
34... Nb3 {[%clk 0:00:39.3]} 35. Na3 {[%clk 0:00:22.6]} 35... Na1 {[%clk
0:00:40.3]} 36. Rd2 {[%clk 0:00:21.3]} 36... Rb4 {[%clk 0:00:40]} 37. Bd4 {[%clk
0:00:18.1]} 37... Nb3 {[%clk 0:00:34.6]} 38. Nc2 {[%clk 0:00:18.6]} 38... Rc4
{[%clk 0:00:29.2]} 39. Bc3 {[%clk 0:00:19.3]} 39... Nxd2 {[%clk 0:00:30]} 40.
Kxd2 {[%clk 0:00:21.2]} 40... c6 {[%clk 0:00:26.8]} 41. dxc6 {[%clk 0:00:16.9]}
41... Rxc6 {[%clk 0:00:27.6]} 42. Nb4 {[%clk 0:00:17.6]} 42... Rb6 {[%clk
0:00:27.3]} 43. Nd5 {[%clk 0:00:18.1]} 43... Rb3 {[%clk 0:00:28.5]} 44. Kc2
{[%clk 0:00:19.1]} 44... f6 {[%clk 0:00:24.9]} 45. Nc7 {[%clk 0:00:19.4]} 45...
Rc8 {[%clk 0:00:23.8]} 46. Nd5 {[%clk 0:00:20.4]} 46... Kf7 {[%clk 0:00:24.4]}
47. f4 {[%clk 0:00:21.2]} 47... Ke6 {[%clk 0:00:24.9]} 48. f5+ {[%clk
0:00:21.3]} 48... Kd7 {[%clk 0:00:25.9]} 49. Kd3 {[%clk 0:00:16.4]} 49... Rc5
{[%clk 0:00:26.9]} 50. Kd4 {[%clk 0:00:16.9]} 50... a3 {[%clk 0:00:23]} 51. bxa3
{[%clk 0:00:17.4]} 51... Rxa3 {[%clk 0:00:23.9]} 52. Be1 {[%clk 0:00:15.5]}
52... Rc1 {[%clk 0:00:20.9]} 53. Bb4 {[%clk 0:00:14.7]} 53... Rxg3 {[%clk
0:00:20.1]} 54. Nf4 {[%clk 0:00:11.8]} 54... Rxg4 {[%clk 0:00:19.2]} 55. Ne6
{[%clk 0:00:11.2]} 55... Ra1 {[%clk 0:00:14.6]} 56. Nf8+ {[%clk 0:00:09.1]}
56... Ke7 {[%clk 0:00:14.2]} 57. Ne6 {[%clk 0:00:05]} 57... Ra4 {[%clk
0:00:13.6]} 0-1

[Event "*** Titled Tuesday Blitz"]
[Site "Chess.com"]
[Date "2019.08.06"]
[Round "3"]
[White "Marcus_Harvey"]
[Black "Cruel_Yaro"]
[Result "1/2-1/2"]
[WhiteElo "2770"]
[BlackElo "2755"]
[TimeControl "180+2"]
[EndTime "13:38:16 PDT"]
[Termination "Game drawn by repetition"]

1. d4 {[%clk 0:03:01.9]} 1... Nf6 {[%clk 0:02:57.7]} 2. Nf3 {[%clk 0:03:02.6]}
2... g6 {[%clk 0:02:58.5]} 3. b3 {[%clk 0:02:58.5]} 3... Bg7 {[%clk 0:02:58.2]}
4. Bb2 {[%clk 0:02:59.9]} 4... c5 {[%clk 0:02:56.4]} 5. e3 {[%clk 0:03:01.1]}
5... cxd4 {[%clk 0:02:52.6]} 6. Nxd4 {[%clk 0:03:03]} 6... O-O {[%clk
0:02:51.9]} 7. c4 {[%clk 0:03:03.3]} 7... d5 {[%clk 0:02:45.4]} 8. cxd5 {[%clk
0:03:03.2]} 8... Nxd5 {[%clk 0:02:45.7]} 9. Bc4 {[%clk 0:03:03.4]} 9... Nb6
{[%clk 0:02:39.5]} 10. Be2 {[%clk 0:03:03]} 10... Nc6 {[%clk 0:02:36.7]} 11. O-O
{[%clk 0:02:35.4]} 11... Nxd4 {[%clk 0:02:35.8]} 12. Bxd4 {[%clk 0:02:36.5]}
12... Bxd4 {[%clk 0:02:35.7]} 13. exd4 {[%clk 0:02:38]} 13... Be6 {[%clk
0:02:19.9]} 14. Bf3 {[%clk 0:02:35.8]} 14... Bd5 {[%clk 0:02:19.6]} 15. Nc3
{[%clk 0:02:36.6]} 15... Bxf3 {[%clk 0:02:18.1]} 16. Qxf3 {[%clk 0:02:37.4]}
16... Qxd4 {[%clk 0:02:18.3]} 17. Rad1 {[%clk 0:02:36.1]} 17... Qf6 {[%clk
0:02:15.8]} 18. Qxf6 {[%clk 0:02:26.6]} 18... exf6 {[%clk 0:02:16]} 19. Ne4
{[%clk 0:02:28]} 19... f5 {[%clk 0:02:02.6]} 20. Nc5 {[%clk 0:02:28.1]} 20...
Rab8 {[%clk 0:02:01]} 21. Nd7 {[%clk 0:02:01.4]} 21... Nxd7 {[%clk 0:01:58.6]}
22. Rxd7 {[%clk 0:02:03.3]} 22... Rfd8 {[%clk 0:01:34.7]} 23. Rfd1 {[%clk
0:02:03.9]} 23... Rxd7 {[%clk 0:01:35.7]} 24. Rxd7 {[%clk 0:02:04.7]} 24... Rc8
{[%clk 0:01:35.7]} 25. g3 {[%clk 0:02:05.2]} 25... Rb8 {[%clk 0:01:13.6]} 26. b4
{[%clk 0:01:53.3]} 26... a6 {[%clk 0:01:13.9]} 27. a3 {[%clk 0:01:48.3]} 27...
b5 {[%clk 0:01:11.2]} 28. Rd6 {[%clk 0:01:47.1]} 28... Ra8 {[%clk 0:01:12]} 29.
Rb6 {[%clk 0:01:48.1]} 29... h5 {[%clk 0:01:05.4]} 30. h4 {[%clk 0:01:49]} 30...
Kg7 {[%clk 0:01:06.2]} 31. Kg2 {[%clk 0:01:50.5]} 31... f6 {[%clk 0:01:00.2]}
32. Rb7+ {[%clk 0:01:49.9]} 32... Kh6 {[%clk 0:01:00.7]} 33. Rb6 {[%clk
0:01:51.1]} 33... Kg7 {[%clk 0:01:00.8]} 34. f4 {[%clk 0:01:48.1]} 34... Ra7
{[%clk 0:00:52.6]} 35. Kf2 {[%clk 0:01:44.8]} 35... Ra8 {[%clk 0:00:52.2]} 36.
Ke3 {[%clk 0:01:44.2]} 36... Ra7 {[%clk 0:00:53.1]} 37. Kd4 {[%clk 0:01:44.6]}
37... Rd7+ {[%clk 0:00:37.1]} 38. Kc5 {[%clk 0:01:45.4]} 38... Rd3 {[%clk
0:00:37.3]} 39. Rxa6 {[%clk 0:01:46.9]} 39... Rxg3 {[%clk 0:00:38.3]} 40. Kxb5
{[%clk 0:01:48.4]} 40... g5 {[%clk 0:00:38.4]} 41. hxg5 {[%clk 0:01:45.4]} 41...
fxg5 {[%clk 0:00:39.4]} 42. fxg5 {[%clk 0:01:46.5]} 42... Rxg5 {[%clk
0:00:40.2]} 43. Rc6 {[%clk 0:01:35.2]} 43... f4+ {[%clk 0:00:37.8]} 44. Kc4
{[%clk 0:01:31.3]} 44... h4 {[%clk 0:00:32.4]} 45. Kd4 {[%clk 0:01:25.5]} 45...
h3 {[%clk 0:00:31.5]} 46. Rc1 {[%clk 0:01:21.9]} 46... Rg2 {[%clk 0:00:08.9]}
47. a4 {[%clk 0:01:22.6]} 47... Re2 {[%clk 0:00:08.8]} 48. a5 {[%clk 0:01:20.1]}
48... f3 {[%clk 0:00:08.1]} 49. a6 {[%clk 0:01:21.3]} 49... f2 {[%clk
0:00:05.2]} 50. Rf1 {[%clk 0:01:09.5]} 50... h2 {[%clk 0:00:06.2]} 51. a7 {[%clk
0:01:01.7]} 51... Ra2 {[%clk 0:00:07]} 52. Rxf2 {[%clk 0:01:03]} 52... h1=Q
{[%clk 0:00:07]} 53. Rxa2 {[%clk 0:01:03.6]} 53... Qd1+ {[%clk 0:00:07.2]} 54.
Kc5 {[%clk 0:00:52.7]} 54... Qh5+ {[%clk 0:00:07.4]} 55. Kb6 {[%clk 0:00:49]}
55... Qg6+ {[%clk 0:00:08.4]} 56. Ka5 {[%clk 0:00:49.1]} 56... Qg5+ {[%clk
0:00:08.2]} 57. b5 {[%clk 0:00:50.3]} 57... Qd8+ {[%clk 0:00:09.1]} 58. Ka6
{[%clk 0:00:17.4]} 58... Qd6+ {[%clk 0:00:09]} 59. b6 {[%clk 0:00:16.1]} 59...
Qd3+ {[%clk 0:00:09.8]} 60. Kb7 {[%clk 0:00:15.3]} 60... Qd5+ {[%clk 0:00:09.6]}
61. Kb8 {[%clk 0:00:16.3]} 61... Qd8+ {[%clk 0:00:09.2]} 62. Kb7 {[%clk
0:00:17.6]} 62... Qd5+ {[%clk 0:00:10]} 63. Kb8 {[%clk 0:00:18.9]} 63... Qd8+
{[%clk 0:00:09.3]} 64. Kb7 {[%clk 0:00:20.4]} 64... Qd5+ {[%clk 0:00:10.1]}
1/2-1/2

[Event "*** Titled Tuesday Blitz"]
[Site "Chess.com"]
[Date "2019.08.06"]
[Round "3"]
[White "penguingm1"]
[Black "M1711"]
[Result "0-1"]
[WhiteElo "3013"]
[BlackElo "2535"]
[TimeControl "180+2"]
[EndTime "13:38:18 PDT"]
[Termination "M1711 won by resignation"]

1. d4 {[%clk 0:03:01.9]} 1... Nf6 {[%clk 0:03:00.6]} 2. c4 {[%clk 0:03:00.2]}
2... g6 {[%clk 0:03:01.8]} 3. f3 {[%clk 0:03:00.5]} 3... Bg7 {[%clk 0:02:59.7]}
4. e4 {[%clk 0:03:01.6]} 4... d6 {[%clk 0:03:01]} 5. Nc3 {[%clk 0:03:02.9]} 5...
O-O {[%clk 0:03:01.4]} 6. Nge2 {[%clk 0:03:04.4]} 6... c5 {[%clk 0:03:01.4]} 7.
d5 {[%clk 0:03:05.6]} 7... e6 {[%clk 0:03:02.7]} 8. Ng3 {[%clk 0:03:05.9]} 8...
exd5 {[%clk 0:03:02.6]} 9. cxd5 {[%clk 0:03:07.8]} 9... a6 {[%clk 0:02:49.3]}
10. a4 {[%clk 0:03:05.9]} 10... Nbd7 {[%clk 0:02:42.9]} 11. Be2 {[%clk 0:03:02]}
11... h5 {[%clk 0:02:25]} 12. Bg5 {[%clk 0:03:01.5]} 12... Qa5 {[%clk
0:02:13.4]} 13. Ra3 {[%clk 0:02:57.6]} 13... Nh7 {[%clk 0:02:05.1]} 14. Be7
{[%clk 0:02:57.7]} 14... Qc7 {[%clk 0:01:38.9]} 15. Bxf8 {[%clk 0:02:56.4]}
15... Ndxf8 {[%clk 0:01:39.8]} 16. Qd2 {[%clk 0:02:36.4]} 16... h4 {[%clk
0:01:35]} 17. Nf1 {[%clk 0:02:36.7]} 17... f5 {[%clk 0:01:35.5]} 18. exf5 {[%clk
0:02:37.7]} 18... Bxf5 {[%clk 0:01:35.7]} 19. Ne3 {[%clk 0:02:37.8]} 19... Bd7
{[%clk 0:01:26.1]} 20. O-O {[%clk 0:02:33.5]} 20... Re8 {[%clk 0:01:23.4]} 21.
Kh1 {[%clk 0:02:23.9]} 21... Nf6 {[%clk 0:01:08.3]} 22. Bd3 {[%clk 0:02:22.8]}
22... Bc8 {[%clk 0:00:59.8]} 23. Ne4 {[%clk 0:02:22.7]} 23... Nh5 {[%clk
0:00:55]} 24. Nc4 {[%clk 0:02:21]} 24... Rd8 {[%clk 0:00:43.4]} 25. Qg5 {[%clk
0:02:15]} 25... b5 {[%clk 0:00:34.4]} 26. axb5 {[%clk 0:02:12.7]} 26... axb5
{[%clk 0:00:36.3]} 27. Ncxd6 {[%clk 0:02:14.1]} 27... Rxd6 {[%clk 0:00:34.1]}
28. Nxd6 {[%clk 0:02:15.5]} 28... Qxd6 {[%clk 0:00:36]} 29. Bxb5 {[%clk
0:02:16.1]} 29... Bf6 {[%clk 0:00:23.6]} 30. Qe3 {[%clk 0:02:10]} 30... Bd4
{[%clk 0:00:20.1]} 31. Qe4 {[%clk 0:02:06.9]} 31... Qf6 {[%clk 0:00:16.9]} 32.
Qe8 {[%clk 0:01:43.7]} 32... Bf5 {[%clk 0:00:08.9]} 33. Ra6 {[%clk 0:01:44.1]}
33... Qh8 {[%clk 0:00:04.2]} 34. Qxf8+ {[%clk 0:01:23.6]} 34... Kxf8 {[%clk
0:00:04.3]} 35. Ra8+ {[%clk 0:01:25.3]} 35... Ke7 {[%clk 0:00:04.3]} 36. Rxh8
{[%clk 0:01:21.6]} 36... Bxh8 {[%clk 0:00:06.2]} 37. b3 {[%clk 0:01:21.9]} 37...
Nf4 {[%clk 0:00:05.5]} 38. Bc4 {[%clk 0:01:22]} 38... Kd6 {[%clk 0:00:05.3]} 39.
g3 {[%clk 0:01:20.2]} 39... hxg3 {[%clk 0:00:05.7]} 40. hxg3 {[%clk 0:01:21.6]}
40... Nxd5 {[%clk 0:00:06.6]} 41. Re1 {[%clk 0:01:19.8]} 41... Be5 {[%clk
0:00:03.4]} 42. Kg2 {[%clk 0:01:19.7]} 42... Bc2 {[%clk 0:00:03.7]} 43. f4
{[%clk 0:01:15.1]} 43... Bd4 {[%clk 0:00:04.9]} 44. Re8 {[%clk 0:01:16.5]} 44...
Ne3+ {[%clk 0:00:04.4]} 45. Kf3 {[%clk 0:01:13.6]} 45... Nxc4 {[%clk 0:00:03.4]}
46. bxc4 {[%clk 0:01:15.5]} 46... Bd3 {[%clk 0:00:03.3]} 47. Rg8 {[%clk
0:01:15.2]} 47... Ke7 {[%clk 0:00:04.2]} 48. g4 {[%clk 0:01:14.1]} 48... Kf7
{[%clk 0:00:05.5]} 49. Rc8 {[%clk 0:01:15.5]} 49... Bxc4 {[%clk 0:00:06.9]} 50.
Ke4 {[%clk 0:01:16.9]} 50... Be6 {[%clk 0:00:07.4]} 51. Rc7+ {[%clk 0:01:18.2]}
51... Ke8 {[%clk 0:00:06.6]} 52. Rc6 {[%clk 0:01:18]} 52... Kd7 {[%clk
0:00:05.3]} 53. Ra6 {[%clk 0:01:18]} 53... Bxg4 {[%clk 0:00:04.3]} 54. Rxg6
{[%clk 0:01:19]} 54... Bd1 {[%clk 0:00:05.8]} 55. Rh6 {[%clk 0:01:15.6]} 55...
Bc2+ {[%clk 0:00:06.7]} 56. Kd5 {[%clk 0:01:17.1]} 56... Ke7 {[%clk 0:00:06.3]}
57. Rh2 {[%clk 0:01:14.5]} 57... Bb3+ {[%clk 0:00:06.1]} 58. Ke4 {[%clk
0:01:15.8]} 58... Bg7 {[%clk 0:00:04.4]} 59. Rg2 {[%clk 0:01:14.9]} 59... Kf7
{[%clk 0:00:04.6]} 60. Rd2 {[%clk 0:01:12.8]} 60... c4 {[%clk 0:00:04.9]} 61.
Rd7+ {[%clk 0:01:14]} 61... Kf8 {[%clk 0:00:05.6]} 62. Rc7 {[%clk 0:01:14.8]}
62... Bf6 {[%clk 0:00:03.1]} 63. Kf5 {[%clk 0:01:16.1]} 63... Ba1 {[%clk
0:00:03.8]} 64. Kg6 {[%clk 0:01:16.9]} 64... c3 {[%clk 0:00:04.1]} 65. f5 {[%clk
0:01:16.3]} 65... c2 {[%clk 0:00:04.6]} 66. f6 {[%clk 0:01:17.7]} 66... Ke8
{[%clk 0:00:03.7]} 67. Kf5 {[%clk 0:01:00.5]} 67... Bb2 {[%clk 0:00:04.9]} 68.
f7+ {[%clk 0:00:58.9]} 68... Kf8 {[%clk 0:00:04.2]} 69. Kg6 {[%clk 0:00:47.2]}
69... c1=Q {[%clk 0:00:05.2]} 0-1